bitfinex/quotes_ETHUSD_20251218
["timestamp","ask_amount","ask_price","bid_price","bid_amount"]
[1766097628142,4.09712525,2834.4,2832.5,0.46438023]
[1766097628326,4.09712525,2834.4,2832.7,5.64877851]
[1766097628735,0.001,2834.4,2832.6,3.53024588]
[1766097629047,0.001,2834.4,2831.9,9.26290479]
[1766097629048,0.567,2834.3,2832.9,0.405504]
[1766097629344,4.6168,2834.2,2833.1,4.5879]
[1766097629547,4.6168,2834.2,2833.0,0.567]
[1766097629759,4.6168,2834.2,2833.1,0.405504]
[1766097630053,4.6168,2834.2,2833.2,4.5879]
[1766097630251,4.6168,2834.2,2833.1,0.405504]
[1766097630423,4.6168,2834.2,2833.2,4.5879]
[1766097630623,4.6168,2834.2,2833.1,0.405504]
[1766097631127,4.6168,2834.2,2833.2,4.5879]
[1766097631452,4.6168,2834.2,2833.1,0.405504]
[1766097631835,4.6168,2834.2,2833.2,4.5879]
[1766097632258,4.6168,2834.2,2833.1,0.405504]
[1766097632460,5.08118023,2834.2,2833.1,0.405504]
[1766097632649,4.6168,2834.1,2833.3,2.4866]
[1766097632850,4.6168,2834.1,2833.3,4.5879]
[1766097633638,4.6168,2834.1,2833.4,0.567]
[1766097633952,4.6168,2834.1,2833.2,0.567]
[1766097634155,0.46438023,2834.2,2833.2,0.567]
[1766097635042,4.6168,2834.1,2833.2,0.567]
[1766097635365,0.46438023,2834.2,2833.2,0.567]
[1766097635661,4.6168,2834.1,2833.2,0.567]
[1766097635873,4.6168,2834.1,2833.2,5.1549]
[1766097636068,0.46438023,2834.2,2833.2,0.567]
[1766097636358,2.131,2834.1,2833.2,0.567]
[1766097636532,4.87633802,2834.0,2833.2,0.567]
[1766097636933,4.6168,2833.9,2833.2,0.567]
[1766097638041,4.6168,2833.9,2833.2,3.0536]
[1766097640053,4.6168,2834.1,2833.2,3.0536]
[1766097640254,0.46438023,2834.2,2833.2,3.0536]
[1766097640436,0.46438023,2834.2,2833.2,2.4866]
[1766097640642,0.46438023,2834.2,2833.3,0.567]
[1766097640844,4.6168,2834.1,2833.3,0.567]
[1766097642641,0.46438023,2834.2,2833.3,0.567]
[1766097643039,5.1099,2834.1,2833.3,0.567]
[1766097643538,0.46438023,2834.2,2833.3,0.567]
[1766097643756,0.46438023,2834.2,2832.6,3.53027387]
[1766097643757,9.26290479,2833.5,2830.9,0.002]
[1766097643940,3.726,2833.9,2830.8,0.002]
[1766097643941,0.405504,2832.5,2830.8,0.002]
[1766097644301,0.405504,2831.1,2829.7,0.6]
[1766097644577,0.405504,2831.1,2828.6,9.26290479]
[1766097644578,2.8095,2830.5,2829.1,2.3584]
[1766097644789,2.8095,2829.9,2829.2,0.50571]
[1766097644994,5.1099,2829.9,2829.1,2.3584]
[1766097645280,0.568,2830.4,2828.1,9.26290479]
[1766097645281,0.568,2830.0,2828.7,2.6987]
[1766097645583,5.1099,2829.9,2828.8,5.0571]
[1766097645783,5.1099,2829.9,2828.0,0.002]
[1766097645784,0.46438023,2829.9,2828.4,5.0571]
[1766097645988,0.46438023,2829.9,2828.4,0.568]
[1766097646154,5.1099,2829.8,2828.5,0.56251]
[1766097646481,0.46438023,2829.6,2828.5,0.56251]
[1766097646659,0.568,2829.5,2828.5,0.56251]
[1766097646867,0.46438023,2829.6,2828.8,5.0571]
[1766097647080,0.46438023,2829.6,2828.9,6.13181]
[1766097647383,0.46438023,2829.6,2829.0,0.569]
[1766097647582,3.53788767,2829.7,2829.0,0.569]
[1766097647757,3.53788767,2829.7,2829.1,0.002]
[1766097654491,3.53788767,2829.7,2829.2,2.6987]
[1766097654689,0.46438023,2830.2,2829.3,5.89617]
[1766097654862,0.46438023,2830.2,2829.4,2.6987]
[1766097655377,5.1099,2830.3,2829.4,2.6987]
[1766097655581,0.46438023,2830.2,2829.4,2.13]
[1766097655916,0.46438023,2830.2,2829.4,4.8287]
[1766097656059,0.46438023,2830.2,2829.4,5.395477]
[1766097656487,2.8095,2830.5,2829.5,4.88]
[1766097656788,0.46438023,2830.7,2829.5,4.88]
[1766097656973,2.8095,2830.5,2829.5,4.88]
[1766097657298,5.1099,2830.4,2829.6,0.5446777]
[1766097657593,5.1099,2830.4,2829.7,0.569]
[1766097658087,2.3004,2830.4,2829.7,5.449]
[1766097658289,2.8095,2830.7,2829.7,2.7503]
[1766097658491,0.86988423,2830.9,2829.8,2.6987]
[1766097658790,0.46438023,2830.8,2829.8,2.6987]
[1766097658958,0.86988423,2830.9,2829.8,2.6987]
[1766097659162,5.1099,2830.8,2829.8,2.6987]
[1766097659787,2.8095,2830.9,2829.8,2.6987]
[1766097659996,5.1099,2830.7,2829.9,0.57784978]
[1766097660290,0.46438023,2831.2,2829.9,0.57784978]
[1766097660502,0.46438023,2831.0,2829.9,0.57784978]
[1766097660802,3.53196012,2831.3,2829.9,0.57784978]
[1766097660803,2.3004,2830.7,2829.9,0.57784978]
[1766097661008,2.3004,2830.7,2829.9,3.27654978]
[1766097661209,2.3004,2830.7,2830.0,0.32765498]
[1766097661366,5.1099,2830.7,2830.1,0.568]
[1766097661566,2.3004,2830.7,2830.1,0.568]
[1766097661865,2.3004,2830.7,2830.1,3.4808]
[1766097667095,5.0534,2830.7,2830.1,3.4808]
[1766097668593,5.0534,2830.7,2830.1,0.568]
[1766097668802,5.1935,2830.6,2830.1,0.568]
[1766097669598,2.4405,2830.5,2830.1,0.568]
[1766097669806,5.1935,2830.5,2830.1,0.568]
[1766097671678,5.1935,2830.5,2829.8,2.9128]
[1766097671879,5.1935,2830.5,2829.9,1.07741]
[1766097672175,5.1935,2830.5,2829.9,0.50941]
[1766097672376,5.1945,2830.7,2830.0,2.9128]
[1766097672601,5.1935,2830.6,2830.1,0.568]
[1766097673302,5.1935,2830.6,2830.2,0.568]
[1766097673499,5.1935,2830.6,2830.3,0.567]
[1766097674177,0.001,2830.7,2830.3,0.567]
[1766097674578,5.3394,2830.7,2830.3,0.567]
[1766097674778,2.444,2830.6,2830.3,0.567]
[1766097675403,5.3384,2830.6,2830.3,0.567]
[1766097677579,0.001,2830.7,2830.3,0.567]
[1766097677780,0.001,2830.7,2830.3,5.7432]
[1766097677981,0.001,2830.7,2830.4,0.57432]
[1766097679013,5.3384,2831.5,2830.7,2.1803]
[1766097679191,0.001,2831.9,2831.3,2.1803]
[1766097679510,5.3384,2832.7,2831.9,2.9949]
[1766097679689,5.3384,2832.7,2832.0,5.7402]
[1766097680415,5.3384,2832.7,2832.0,3.5619]
[1766097683026,5.3384,2832.7,2832.0,5.7402]
[1766097683223,5.3384,2832.7,2832.1,2.9949]
[1766097684428,5.3394,2832.7,2832.1,2.9949]
[1766097686413,5.3394,2832.7,2832.1,3.56434449]
[1766097688040,5.3394,2832.7,2832.1,5.74264449]
[1766097688212,2.445,2832.7,2832.1,5.74264449]
[1766097691710,2.445,2832.7,2832.2,2.9949]
[1766097694534,0.001,2832.7,2832.2,5.1732]
[1766097694727,0.001,2832.7,2832.3,0.57426445]
[1766097694931,0.001,2832.7,2832.4,0.566]
[1766097697029,0.001,2833.0,2832.5,2.9949]
[1766097697329,0.001,2833.0,2832.5,5.1732]
[1766097698130,0.001,2833.0,2832.5,2.9949]
[1766097698335,2.445,2833.0,2832.5,2.9949]
[1766097698718,5.3394,2833.0,2832.5,2.9949]
[1766097701532,5.3394,2833.0,2832.4,0.566]
[1766097701723,5.3394,2833.0,2832.4,5.7392]
[1766097704615,2.8954,2833.0,2832.4,3.5609]
[1766097704917,2.5968,2832.9,2832.4,3.5609]
[1766097706440,2.5968,2832.9,2832.4,3.5629]
[1766097706832,5.6187,2832.9,2832.4,3.5629]
[1766097708337,0.001,2833.0,2832.4,3.5629]
[1766097708338,0.001,2833.0,2832.4,0.002]
[1766097708538,0.001,2833.0,2832.5,0.565]
[1766097708740,5.6187,2832.9,2832.5,0.565]
[1766097709129,0.001,2833.0,2832.5,0.565]
[1766097709314,0.001,2833.0,2832.4,0.002]
[1766097709515,5.6187,2832.9,2832.0,0.002]
[1766097709743,3.53091224,2833.0,2832.1,0.565]
[1766097710044,0.405504,2832.8,2831.5,6.49331437]
[1766097710241,0.405504,2832.8,2831.6,0.565]
[1766097710442,3.53032549,2832.6,2831.6,0.565]
[1766097710644,3.53032549,2832.6,2831.6,1.02938023]
[1766097710843,3.53032549,2832.6,2831.5,6.49331437]
[1766097711021,5.6187,2832.5,2831.6,0.565]
[1766097711227,7.06065098,2832.6,2831.7,0.565]
[1766097711520,7.06065098,2832.6,2831.8,1e-08]
[1766097711721,3.53032549,2832.6,2831.8,1e-08]
[1766097712122,5.6187,2832.5,2831.8,1e-08]
[1766097712316,7.06052799,2832.7,2831.2,0.46638023]
[1766097712652,0.405504,2832.6,2831.3,0.565]
[1766097713153,5.6187,2832.5,2831.3,0.565]
[1766097713330,5.6187,2832.5,2831.4,0.565]
[1766097713831,0.405504,2832.6,2831.2,0.002]
[1766097714033,5.6187,2832.3,2831.3,0.565]
[1766097714545,5.6187,2832.2,2831.8,0.002]
[1766097714741,3.5307092,2832.3,2831.8,0.002]
[1766097715117,5.6187,2832.2,2831.8,0.002]
[1766097715328,3.5307092,2832.3,2831.8,0.002]
[1766097715529,3.5307092,2832.3,2830.6,0.002]
[1766097715530,0.46438023,2832.2,2830.6,0.002]
[1766097715741,0.46438023,2832.2,2830.9,0.565]
[1766097716150,5.6187,2832.1,2830.9,0.565]
[1766097716330,5.6187,2831.9,2830.9,0.565]
[1766097717161,4.09614627,2832.0,2830.6,0.46638023]
[1766097717162,7.62729254,2832.0,2830.6,0.46638023]
[1766097717347,5.6187,2831.9,2830.8,0.567]
[1766097717658,4.09614627,2832.0,2830.8,0.567]
[1766097718458,5.6187,2831.9,2830.8,0.567]
[1766097719044,0.46438023,2831.9,2830.6,0.002]
[1766097719247,3.0219,2831.5,2830.6,0.002]
[1766097719558,3.0219,2831.1,2830.6,0.002]
[1766097719776,5.6187,2831.0,2830.6,0.002]
[1766097720952,2.5968,2831.0,2830.6,0.002]
[1766097721278,5.6187,2830.9,2830.6,0.002]
[1766097723681,5.6187,2830.9,2830.5,0.567]
[1766097723682,7.62815798,2831.6,2830.5,0.002]
[1766097723978,7.62815798,2831.6,2830.2,1.02838023]
[1766097724178,5.6119,2831.4,2830.2,1.02838023]
[1766097724977,5.6119,2831.4,2829.9,0.50941]
[1766097725276,7.54767962,2831.4,2830.0,0.46438023]
[1766097725476,7.06387312,2831.4,2830.0,0.46438023]
[1766097725857,7.06387312,2831.4,2830.0,1.02838023]
[1766097725858,0.46438023,2831.3,2830.0,1.02838023]
[1766097726044,0.564,2831.2,2830.0,1.02838023]
[1766097726565,5.6119,2831.1,2830.0,0.564]
[1766097726748,5.6119,2831.1,2829.9,2.6246]
[1766097727074,5.6119,2831.1,2830.0,0.564]
[1766097727271,0.46438023,2831.1,2830.0,0.564]
[1766097727571,0.46438023,2831.1,2829.9,2.6246]
[1766097727770,5.6119,2831.0,2830.0,0.564]
[1766097727971,3.0194,2830.7,2830.0,0.564]
[1766097728270,5.6119,2830.4,2830.0,0.564]
[1766097728689,0.46438023,2831.1,2829.7,0.46638023]
[1766097728999,0.564,2830.8,2829.7,0.002]
[1766097729346,3.53273579,2830.7,2829.7,0.002]
[1766097729691,5.6119,2830.6,2829.7,0.002]
[1766097730050,3.53273579,2830.7,2829.6,0.002]
[1766097730349,2.4494,2830.5,2829.5,0.002]
[1766097730547,2.4494,2829.9,2829.0,3.1929]
[1766097730850,5.561,2829.6,2829.2,0.31949]
[1766097732471,5.561,2829.6,2829.1,0.46638023]
[1766097732676,5.561,2829.6,2829.1,0.002]
[1766097732677,2.4286,2829.6,2829.1,0.002]
[1766097732854,5.3835,2829.3,2829.0,0.002]
[1766097733359,5.3835,2829.2,2828.9,0.46438023]
[1766097734586,5.3835,2829.2,2828.8,0.46638023]
[1766097735301,0.564,2830.0,2828.8,0.46638023]
[1766097735705,5.3835,2829.9,2828.8,0.46638023]
[1766097736471,2.4286,2829.9,2828.8,1.03038023]
[1766097736779,5.3835,2829.9,2828.8,0.002]
[1766097737166,4.09758505,2830.0,2828.8,0.002]
[1766097737486,5.3835,2829.9,2828.8,0.002]
[1766097737990,4.09758505,2830.0,2828.8,0.002]
[1766097738306,7.6311701,2830.0,2828.8,0.002]
[1766097738552,5.3835,2829.9,2828.7,6.51019909]
[1766097738797,2.9549,2829.6,2828.7,6.51019909]
[1766097739012,2.4286,2829.3,2828.7,6.51019909]
[1766097739208,2.9549,2829.0,2828.7,6.51019909]
[1766097740088,5.3835,2829.0,2828.7,6.51019909]
[1766097741200,0.564,2829.6,2828.7,0.62489909]
[1766097741394,2.9549,2829.2,2828.6,0.564]
[1766097741598,2.4286,2829.1,2828.6,0.564]
[1766097741798,5.3835,2829.0,2828.5,6.51219909]
[1766097741974,5.3835,2829.0,2828.5,7.07619909]
[1766097743408,5.3835,2829.0,2828.5,0.566]
[1766097743907,5.3835,2829.0,2828.5,0.002]
[1766097745005,5.3835,2828.9,2828.5,0.002]
[1766097746055,2.9549,2828.9,2828.5,0.002]
[1766097750208,2.4286,2829.1,2828.5,0.002]
[1766097750600,5.3835,2829.1,2828.5,0.002]
[1766097751000,2.9549,2829.0,2828.5,0.002]
[1766097752200,2.9559,2829.0,2828.5,0.002]
[1766097752807,2.9559,2829.0,2828.5,5.5832]
[1766097754228,5.3845,2829.0,2828.5,5.5832]
[1766097754630,5.3835,2828.9,2828.5,0.002]
[1766097756344,0.001,2829.0,2828.5,6.91045206]
[1766097756637,0.564,2829.6,2828.9,5.5812]
[1766097756814,5.3835,2829.5,2828.9,5.5812]
[1766097757336,0.46438023,2829.7,2828.8,0.564]
[1766097757520,5.3835,2829.7,2829.0,5.5812]
[1766097757723,6.47,2829.8,2829.0,5.5812]
[1766097758032,5.3835,2829.7,2829.0,5.5812]
[1766097759028,2.4286,2829.7,2828.8,7.0754528]
[1766097759229,5.3835,2829.6,2829.0,5.5812]
[1766097760733,0.001,2829.7,2829.2,5.5812]
[1766097760913,0.001,2829.7,2829.4,5.5812]
[1766097761119,5.3835,2830.3,2829.5,0.03534193]
[1766097761310,5.3835,2830.3,2829.1,6.5114528]
[1766097761311,5.9475,2830.5,2829.7,5.5812]
[1766097761511,2.9549,2830.3,2829.7,3.0036]
[1766097761731,2.9549,2830.3,2829.7,5.5812]
[1766097762535,0.564,2830.5,2829.6,0.564]
[1766097762705,1.02838023,2830.5,2829.9,5.6409]
[1766097762906,1.02838023,2830.5,2829.6,0.564]
[1766097763131,0.564,2830.5,2829.6,0.564]
[1766097763436,1.02838023,2830.5,2829.6,0.564]
[1766097763833,0.46438023,2830.5,2829.7,5.6409]
[1766097764037,5.5284,2830.6,2829.7,5.6409]
[1766097764235,5.5284,2830.6,2829.6,0.564]
[1766097764607,5.5284,2830.8,2829.6,0.564]
[1766097764829,5.5284,2830.7,2829.7,6.54679223]
[1766097765231,0.565,2830.9,2829.7,6.54679223]
[1766097765431,1.02938023,2830.9,2829.7,6.54679223]
[1766097765629,1.02938023,2830.9,2830.2,2.5239]
[1766097765936,0.001,2830.9,2830.4,2.5239]
[1766097766138,0.001,2830.9,2830.2,6.5114528]
[1766097766331,0.001,2830.9,2830.3,5.6409]
[1766097766640,0.001,2830.9,2830.2,6.5114528]
[1766097766641,0.001,2830.9,2830.5,3.117]
[1766097766851,0.001,2830.9,2830.5,5.6409]
[1766097767542,0.001,2831.1,2830.6,5.6409]
[1766097767739,0.001,2831.1,2830.6,2.5239]
[1766097768037,0.001,2831.1,2830.6,5.6409]
[1766097768574,0.001,2830.7,2830.6,5.6409]
[1766097769640,0.001,2831.1,2830.6,5.6409]
[1766097770021,0.001,2831.1,2830.5,0.564]
[1766097770445,0.001,2831.1,2830.6,5.6409]
[1766097770635,0.001,2831.1,2830.5,0.564]
[1766097771951,0.001,2831.1,2830.6,3.117]
[1766097773050,0.001,2831.1,2830.6,5.6409]
[1766097775152,3.0623,2831.1,2830.6,5.6409]
[1766097779732,3.0623,2831.1,2830.5,0.564]
[1766097779945,3.0623,2831.1,2830.5,6.2049]
[1766097780173,5.5284,2831.0,2830.5,0.564]
[1766097780372,0.001,2831.1,2830.5,0.564]
[1766097780571,5.5284,2831.0,2830.5,0.564]
[1766097780942,6.08134,2831.0,2830.4,5.6409]
[1766097781144,5.5284,2831.0,2829.6,0.46438023]
[1766097781449,5.5284,2830.8,2830.0,3.117]
[1766097781659,3.2701,2830.6,2829.9,0.46438023]
[1766097781874,3.2701,2830.6,2830.0,5.7701]
[1766097782052,5.6822,2830.5,2829.8,0.46438023]
[1766097782259,5.6822,2830.5,2829.8,1.02738023]
[1766097782468,5.6822,2830.5,2829.8,3.53648023]
[1766097782947,5.6822,2830.5,2829.8,6.79748023]
[1766097785346,2.4121,2830.5,2829.8,6.23448023]
[1766097785553,0.563,2830.9,2829.8,0.563]
[1766097785752,3.2701,2830.6,2829.8,0.563]
[1766097785953,2.4121,2830.5,2829.8,0.563]
[1766097786155,2.4121,2830.3,2829.8,0.563]
[1766097786455,5.6822,2830.3,2829.8,0.563]
[1766097786984,0.563,2830.9,2829.9,2.5091]
[1766097787186,3.2701,2830.3,2829.8,3.824]
[1766097787388,5.6822,2830.3,2829.8,3.824]
[1766097787889,5.6822,2830.3,2829.8,3.261]
[1766097788091,3.26410001,2830.2,2829.8,1.02738023]
[1766097788770,3.26410001,2830.2,2829.8,1.02938023]
[1766097789168,2.4121,2830.3,2829.8,0.565]
[1766097789368,2.4121,2830.3,2829.8,6.3351]
[1766097789685,2.4121,2830.8,2829.9,2.5091]
[1766097789881,2.4121,2830.8,2829.9,5.7701]
[1766097790186,0.563,2830.9,2829.9,5.7701]
[1766097790375,3.2701,2830.8,2829.9,5.7701]
[1766097790578,5.6822,2830.5,2829.9,5.7701]
[1766097790969,3.2701,2830.4,2829.9,5.7701]
[1766097791870,3.2701,2830.6,2830.0,5.7701]
[1766097792071,5.6822,2830.6,2830.0,5.7701]
[1766097792790,3.3328,2830.8,2830.0,5.7701]
[1766097792995,3.1536,2830.9,2829.9,0.7015048]
[1766097792996,3.3328,2830.7,2829.9,0.7015048]
[1766097793313,5.9234,2830.7,2830.1,5.5223]
[1766097793768,0.001,2831.1,2830.4,5.5223]
[1766097793769,5.9244,2831.1,2830.4,5.5223]
[1766097793968,5.9244,2831.1,2830.4,6.0853]
[1766097794170,5.9244,2831.1,2830.5,5.5223]
[1766097794471,5.9244,2831.1,2830.6,5.5223]
[1766097795796,0.001,2831.1,2830.6,6.13083]
[1766097796000,0.001,2831.1,2830.7,5.5223]
[1766097798010,0.001,2831.1,2830.6,0.60853]
[1766097798204,0.001,2831.1,2830.4,6.0853]
[1766097798410,0.001,2831.1,2830.5,5.5223]
[1766097798997,3.3338,2831.1,2830.5,5.5223]
[1766097799316,5.9244,2831.1,2830.5,5.5223]
[1766097799496,5.9234,2831.0,2830.5,5.5223]
[1766097801815,0.001,2831.1,2830.5,6.0853]
[1766097803492,3.3338,2831.1,2830.5,6.0853]
[1766097803889,3.3338,2831.1,2830.5,0.563]
[1766097804083,3.3328,2831.0,2830.5,0.563]
[1766097804290,5.9234,2831.0,2830.5,0.563]
[1766097804718,0.001,2831.1,2830.5,0.563]
[1766097804892,0.001,2831.1,2830.5,6.0853]
[1766097805910,5.9244,2831.1,2830.5,6.0853]
[1766097806698,3.3328,2831.0,2830.5,6.0853]
[1766097806895,5.9234,2831.0,2830.5,6.0853]
[1766097808818,0.001,2831.1,2830.7,6.50299676]
[1766097809026,0.001,2831.1,2830.8,5.5223]
[1766097809326,2.5906,2831.5,2831.0,2.366]
[1766097809620,0.563,2831.7,2831.2,2.366]
[1766097809621,1.02738023,2831.7,2831.2,2.366]
[1766097809824,1.02738023,2831.7,2831.2,5.5223]
[1766097810025,0.563,2831.7,2831.2,5.5223]
[1766097810335,0.406504,2831.9,2831.2,5.5223]
[1766097810336,5.9244,2831.9,2831.2,5.5223]
[1766097810619,5.9244,2831.9,2831.3,2.366]
[1766097810820,5.9244,2831.9,2831.4,2.366]
[1766097812122,0.001,2831.9,2831.4,5.5223]
[1766097816132,0.001,2831.9,2831.3,0.563]
[1766097816531,0.001,2831.9,2831.4,5.5223]
[1766097817728,0.001,2831.9,2831.5,5.5223]
[1766097817905,0.001,2831.9,2831.5,2.366]
[1766097818427,0.001,2831.9,2831.5,5.5223]
[1766097819436,0.001,2832.3,2831.8,5.5223]
[1766097819638,0.001,2832.3,2831.8,6.0853]
[1766097819835,0.001,2832.3,2831.8,6.91944089]
[1766097820132,0.001,2832.3,2831.9,5.5223]
[1766097821736,0.001,2832.3,2831.8,1.39714089]
[1766097821737,3.3328,2832.2,2831.8,1.39714089]
[1766097821939,0.001,2832.3,2831.0,5.0]
[1766097821940,2.5906,2832.1,2831.0,7.366]
[1766097822245,0.001,2832.3,2831.2,0.563]
[1766097822246,3.3328,2831.8,2831.2,0.563]
[1766097822410,3.3328,2831.8,2831.3,5.5223]
[1766097823114,3.3328,2831.8,2831.4,0.563]
[1766097823317,0.001,2832.3,2831.5,5.8724]
[1766097823520,0.001,2832.3,2831.4,0.563]
[1766097824230,5.6805,2832.2,2831.4,0.563]
[1766097824439,3.0858,2831.9,2831.4,0.563]
[1766097826143,3.0858,2831.9,2831.3,5.8724]
[1766097826330,3.0858,2831.9,2831.4,0.563]
[1766097826528,3.0858,2831.9,2831.0,0.002]
[1766097826529,0.001,2832.3,2831.0,0.002]
[1766097826736,3.0858,2831.7,2831.3,0.563]
[1766097826939,3.0868,2831.9,2831.3,0.563]
[1766097827657,0.001,2831.9,2831.4,0.64354]
[1766097827941,0.001,2831.9,2831.4,6.55125821]
[1766097828605,0.001,2831.9,2831.4,0.64354]
[1766097828813,0.001,2831.9,2831.3,0.563]
[1766097829013,0.001,2831.9,2831.4,5.8724]
[1766097829847,0.001,2831.9,2831.2,0.46438023]
[1766097830007,0.001,2831.9,2831.4,6.33678023]
[1766097830212,0.001,2831.9,2831.5,0.563]
[1766097830515,5.6815,2832.3,2831.6,5.8724]
[1766097830712,0.001,2832.3,2831.8,2.6106]
[1766097831025,0.001,2832.3,2831.9,0.563]
[1766097833743,3.0858,2832.2,2831.6,3.25414]
[1766097833947,5.6805,2832.1,2831.7,0.563]
[1766097834147,2.5957,2832.3,2831.4,2.6106]
[1766097834452,2.5947,2832.2,2831.5,6.4354]
[1766097834656,5.6805,2832.1,2831.5,6.4354]
[1766097834947,0.001,2832.3,2831.5,0.563]
[1766097834948,2.5947,2832.0,2831.5,0.563]
[1766097835159,5.6805,2832.0,2831.5,0.94548]
[1766097838717,0.001,2832.3,2831.5,0.94548]
[1766097838930,5.6805,2832.2,2831.5,6.81788]
[1766097839134,2.5947,2832.2,2831.5,6.81788]
[1766097839348,3.0858,2832.1,2831.5,3.55608]
[1766097839550,5.6805,2832.1,2831.5,3.55608]
[1766097840334,0.001,2832.3,2831.5,3.55608]
[1766097841146,5.6805,2832.1,2831.5,3.55608]
[1766097841346,2.5947,2832.1,2831.5,0.38248]
[1766097841563,3.0858,2831.9,2831.4,0.563]
[1766097841727,3.0987,2831.8,2831.4,0.563]
[1766097842053,3.0987,2831.9,2831.0,0.002]
[1766097842255,5.6534,2831.6,2831.0,0.002]
[1766097842956,2.5547,2831.5,2831.0,0.002]
[1766097843123,2.5547,2831.4,2830.3,6.50299676]
[1766097843324,2.70980565,2831.2,2830.4,6.3508]
[1766097843552,2.5547,2831.3,2830.4,6.3508]
[1766097843553,2.5547,2831.3,2830.4,5.7878]
[1766097843767,2.5547,2831.3,2830.4,0.563]
[1766097843954,2.5547,2831.3,2830.5,0.70659968]
[1766097844176,2.5547,2831.3,2830.5,6.49439968]
[1766097845450,5.6534,2831.2,2830.5,6.49439968]
[1766097846663,0.37,2831.4,2830.5,7.05739968]
[1766097847174,5.6534,2831.3,2830.5,7.05739968]
[1766097847762,0.37,2831.4,2830.5,7.05739968]
[1766097847963,2.5547,2831.3,2830.5,7.05739968]
[1766097848165,0.37,2831.4,2830.6,0.70573997]
[1766097848166,5.6534,2831.2,2830.6,0.70573997]
[1766097849269,0.37,2831.1,2830.6,0.70573997]
[1766097849644,0.37,2831.1,2830.6,6.49353997]
[1766097850275,0.37,2831.1,2830.7,5.7878]
[1766097851412,0.37,2831.3,2830.7,5.7878]
[1766097851914,0.37,2831.3,2830.6,0.70573997]
[1766097852090,5.6534,2831.2,2830.7,0.19753397]
[1766097853193,5.6534,2831.2,2830.6,0.70773997]
[1766097853385,5.6534,2831.2,2830.7,5.795]
[1766097854506,5.6534,2831.2,2830.6,0.002]
[1766097854711,5.7126,2831.3,2830.6,0.002]
[1766097855310,2.7505,2831.3,2830.6,0.002]
[1766097855513,5.3426,2831.2,2830.6,0.002]
[1766097856510,0.37,2831.3,2830.6,0.002]
[1766097856719,5.3426,2831.0,2830.6,0.002]
[1766097856919,5.3426,2831.0,2830.6,0.75509799]
[1766097858014,5.3426,2830.8,2830.3,0.002]
[1766097858184,5.7126,2830.8,2830.3,0.565]
[1766097859196,0.37,2830.8,2830.3,0.565]
[1766097859401,5.3426,2830.7,2830.3,0.565]
[1766097860331,5.3426,2830.7,2830.3,0.002]
[1766097860332,5.7126,2830.7,2830.3,0.002]
[1766097860522,5.3426,2830.6,2830.3,0.002]
[1766097860830,5.3426,2830.6,2830.1,0.002]
[1766097861630,0.37,2830.7,2830.1,0.002]
[1766097862129,0.37,2830.7,2829.9,0.002]
[1766097862330,2.3805,2830.6,2829.9,0.002]
[1766097862558,5.3426,2830.7,2829.9,0.002]
[1766097862945,0.37,2830.8,2829.9,0.002]
[1766097863235,2.9621,2830.7,2829.9,0.002]
[1766097863416,5.3426,2830.7,2829.9,0.002]
[1766097863614,0.37,2830.8,2829.9,0.002]
[1766097863839,5.3426,2830.7,2829.9,0.002]
[1766097864717,0.37,2830.8,2829.9,0.002]
[1766097865909,5.3426,2830.7,2829.9,0.002]
[1766097866470,0.37,2830.8,2829.9,0.002]
[1766097866652,5.3426,2830.7,2829.9,0.002]
[1766097867066,0.37,2830.6,2829.9,0.002]
[1766097867461,5.3426,2830.5,2829.9,0.002]
[1766097867662,0.37,2830.6,2829.9,0.002]
[1766097867866,5.3426,2830.5,2829.9,0.002]
[1766097868169,0.37,2830.6,2829.9,0.002]
[1766097868478,5.3426,2830.5,2829.9,0.002]
[1766097868642,0.37,2830.6,2829.9,0.002]
[1766097868843,5.3426,2830.5,2829.9,0.002]
[1766097869376,0.37,2830.6,2829.9,0.002]
[1766097870087,5.3426,2830.5,2829.9,0.002]
[1766097870652,0.37,2830.6,2829.9,0.002]
[1766097871271,5.3426,2830.2,2829.9,0.002]
[1766097871440,0.37,2830.2,2829.9,0.002]
[1766097871645,0.37,2830.2,2829.9,5.797]
[1766097872366,0.37,2830.2,2829.9,0.002]
[1766097874746,0.37,2830.2,2829.9,5.797]
[1766097875674,0.37,2830.2,2829.9,0.002]
[1766097875976,0.563,2830.5,2830.0,2.5412]
[1766097876162,0.563,2830.5,2830.1,3.2538]
[1766097876468,0.563,2830.5,2830.1,5.795]
[1766097877079,5.9056,2830.5,2830.1,5.795]
[1766097878682,5.9056,2830.5,2829.9,5.797]
[1766097879067,0.563,2830.5,2830.1,5.795]
[1766097879852,0.563,2830.5,2829.9,0.002]
[1766097880054,5.3426,2830.4,2829.9,0.46638023]
[1766097881494,2.3805,2830.4,2829.9,0.46638023]
[1766097881672,0.563,2830.5,2830.0,3.2538]
[1766097881873,0.563,2830.5,2830.2,3.2538]
[1766097882698,0.563,2830.5,2830.1,2.5412]